fUSD/lending_fUSD_20260602
["ID","MTS","AMOUNT","RATE_DAILY","PERIOD"]
[423763404,1780399841000,-500.0,0.00013699,2]
[423763403,1780399841000,-500.0,0.00013699,2]
[423763402,1780399841000,-500.0,0.00013699,2]
[423763401,1780399841000,-500.0,0.00013699,2]
[423763414,1780399841000,-1680.0,0.00013872,2]
[423763400,1780399841000,-500.0,0.00013699,2]
[423763406,1780399841000,-500.0,0.00013699,2]
[423763424,1780399841000,-500.0,0.0001407,2]
[423763416,1780399841000,-2663.1607727,0.00013922,2]
[423763426,1780399841000,-166.66,0.0001411,2]
[423763420,1780399841000,-166.66,0.00013973,2]
[423763422,1780399841000,-250.0,0.00014,2]
[423763407,1780399841000,-313.87940241,0.00013699,2]
[423763431,1780399841000,-1500.0,0.0001425,2]
[423763430,1780399841000,-166.66,0.00014247,2]
[423763433,1780399841000,-150.0,0.0001425,2]
[423763435,1780399841000,-365059.59926106,0.0001425,2]
[423763443,1780399841000,-1282.43534423,0.00014271,2]
[423763432,1780399841000,-250.0,0.0001425,2]
[423763438,1780399841000,-157.152183,0.0001425,2]
[423763434,1780399841000,-156.0,0.0001425,5]
[423763413,1780399841000,-157.19,0.00013838,2]
[423763408,1780399841000,-500.0,0.00013699,2]
[423763384,1780399841000,-500.0,0.00013699,2]
[423763397,1780399841000,-500.0,0.00013699,2]
[423763340,1780399841000,-500.0,0.00013699,2]
[423763342,1780399841000,-500.0,0.00013699,2]
[423763344,1780399841000,-500.0,0.00013699,2]
[423763346,1780399841000,-500.0,0.00013699,2]
[423763348,1780399841000,-500.0,0.00013699,2]
[423763359,1780399841000,-500.0,0.00013699,2]
[423763361,1780399841000,-500.0,0.00013699,2]
[423763367,1780399841000,-500.0,0.00013699,2]
[423763363,1780399841000,-500.0,0.00013699,2]
[423763365,1780399841000,-500.0,0.00013699,2]
[423763351,1780399841000,-500.0,0.00013699,2]
[423763352,1780399841000,-500.0,0.00013699,2]
[423763355,1780399841000,-500.0,0.00013699,2]
[423763405,1780399841000,-500.0,0.00013699,2]
[423763374,1780399841000,-500.0,0.00013699,2]
[423763357,1780399841000,-500.0,0.00013699,2]
[423763369,1780399841000,-500.0,0.00013699,2]
[423763376,1780399841000,-500.0,0.00013699,2]
[423763386,1780399841000,-500.0,0.00013699,2]
[423763395,1780399841000,-500.0,0.00013699,2]
[423763391,1780399841000,-500.0,0.00013699,2]
[423763387,1780399841000,-500.0,0.00013699,2]
[423763382,1780399841000,-500.0,0.00013699,2]
[423763388,1780399841000,-500.0,0.00013699,2]
[423763439,1780399841000,-157.152183,0.0001425,2]
[423763378,1780399841000,-500.0,0.00013699,2]
[423763393,1780399841000,-500.0,0.00013699,2]
[423763380,1780399841000,-500.0,0.00013699,2]
[423763371,1780399841000,-500.0,0.00013699,2]
[423763440,1780399841000,-157.152183,0.0001425,2]
[423763418,1780399841000,-1282.43534423,0.00013957,2]
[423763437,1780399841000,-151.0,0.0001425,2]
[423763472,1780399841000,-150.0,0.00014628,2]
[423763473,1780399841000,-150.0,0.00014628,2]
[423763477,1780399841000,-150.0,0.00014628,2]
[423763474,1780399841000,-150.0,0.00014628,2]
[423763476,1780399841000,-150.0,0.00014628,2]
[423763479,1780399841000,-525.0,0.00014672,2]
[423763475,1780399841000,-150.0,0.00014628,2]
[423763478,1780399841000,-2663.1607727,0.00014656,2]
[423763481,1780399841000,-1226.0,0.00014672,2]
[423763492,1780399841000,-1000.0,0.000149,2]
[423763489,1780399841000,-350.0,0.00014861,2]
[423763484,1780399841000,-5386.95653349,0.000147,2]
[423763488,1780399841000,-10150.8029756,0.00014835,2]
[423763471,1780399841000,-150.0,0.00014628,2]
[423763493,1780399841000,-315.0,0.000149,2]
[423763482,1780399841000,-3640.0,0.00014672,2]
[423763485,1780399841000,-157.19,0.00014776,2]
[423763483,1780399841000,-1357.0,0.00014672,2]
[423763487,1780399841000,-163.519722,0.00014808,2]
[423763490,1780399841000,-5902.73738216,0.000149,3]
[423763436,1780399841000,-151.0,0.0001425,2]
[423763495,1780399841000,-2663.1607727,0.000149,2]
[423763497,1780399841000,-433.0,0.00014986,2]
[423763494,1780399841000,-1282.43534423,0.000149,2]
[423763496,1780399841000,-215.67541492,0.00014978,2]
[423763500,1780399841000,-362.11024439,0.00014999,2]
[423763498,1780399841000,-202.98472158,0.00014999,2]
[423763499,1780399841000,-231.98253895,0.00014999,2]
[423763486,1780399841000,-1847.85,0.00014786,2]
[423763469,1780399841000,-150.0,0.00014628,2]
[423763491,1780399841000,-309.0,0.000149,2]
[423763470,1780399841000,-150.0,0.00014628,2]
[423763480,1780399841000,-1273.0,0.00014672,2]
[423763441,1780399841000,-157.152183,0.0001425,2]
[423763442,1780399841000,-151.0,0.0001425,2]
[423763444,1780399841000,-150.0,0.000143,2]
[423763445,1780399841000,-157.19,0.00014307,2]
[423763448,1780399841000,-500.0,0.00014351,2]
[423763447,1780399841000,-500.0,0.00014351,2]
[423763450,1780399841000,-500.0,0.00014351,2]
[423763446,1780399841000,-500.0,0.00014351,2]
[423763451,1780399841000,-488.36,0.00014351,2]
[423763455,1780399841000,-2000.0,0.00014458,7]
[423763449,1780399841000,-500.0,0.00014351,2]
[423763454,1780399841000,-2663.1607727,0.00014411,2]
[423763453,1780399841000,-166.66,0.00014384,2]
[423763428,1780399841000,-2663.1607727,0.00014167,2]
[423763457,1780399841000,-1999.99,0.00014458,7]
[423763452,1780399841000,-2319.0,0.0001436,2]
[423763464,1780399841000,-188.45686382,0.00014585,2]
[423763465,1780399841000,-1282.43534423,0.00014586,2]
[423763462,1780399841000,-500.0,0.00014544,7]
[423763461,1780399841000,-2000.0,0.00014544,7]
[423763456,1780399841000,-2000.0,0.00014458,7]
[423763466,1780399841000,-2779.0,0.000146,2]
[423763468,1780399841000,-150.0,0.00014628,2]
[423763458,1780399841000,-4552.69,0.00014504,2]
[423763460,1780399841000,-255.0,0.00014544,5]
[423763467,1780399841000,-150.0,0.00014628,2]
[423763459,1780399841000,-2857.14,0.00014504,2]
[423763463,1780399841000,-1045.052,0.00014585,2]
[423763505,1780399842000,-644.13499775,0.00014999,2]
[423763508,1780399842000,-271.0,0.00015,5]
[423763504,1780399842000,-500.0,0.00014999,2]
[423763501,1780399842000,-465.9276456,0.00014999,2]
[423763502,1780399842000,-1500.0,0.00014999,7]
[423763507,1780399842000,-500.0,0.00014999,2]
[423763509,1780399842000,-1500.0,0.00015,2]
[423763506,1780399842000,-500.0,0.00014999,2]
[423763503,1780399842000,-500.0,0.00014999,2]
[423763512,1780399842000,-250.0,0.00015,2]
[423763510,1780399842000,-1500.0,0.00015,2]
[423763518,1780399842000,-19689.74120115,0.00015,2]
[423763516,1780399842000,-279.092,0.00015,2]
[423763514,1780399842000,-150.0,0.00015,2]
[423763513,1780399842000,-250.0,0.00015,2]
[423763515,1780399842000,-408574.91233606,0.00015,2]
[423763517,1780399842000,-445.85411874,0.00015,2]
[423763511,1780399842000,-1500.0,0.00015,2]
[423763526,1780399843000,-2193.70375225,0.00015,2]
[423763525,1780399843000,-577.15,0.00015,2]
[423763524,1780399843000,-4827.57317652,0.00015,2]
[423763545,1780399846000,-440.27806247,0.00015,2]
[423763544,1780399846000,-13773.06553721,0.00015,2]
[423763542,1780399846000,-2384.77131769,0.00014444,2]
[423763546,1780399846000,-8409.17855624,0.00015,2]
[423763548,1780399846000,-1148.9113853,0.00015,2]
[423763547,1780399846000,-7780.1238,0.00015,2]
[423763543,1780399846000,-1166.22868231,0.00014444,2]
[423763619,1780399876000,-5531.0,0.000105,5]
[423763620,1780399876000,-193.41943853,0.000106,2]
[423763622,1780399876000,-164.48382561,0.00010699,7]
[423763621,1780399876000,-160.51819613,0.000106,2]
[423763623,1780400053000,-227.55474399,0.00010804,2]
[423763624,1780400107000,-193.0,0.0001155,2]
[423763625,1780400123000,-500.0,0.0001155,2]
[423763628,1780400159000,-250.0,0.0001155,2]
[423763629,1780400176000,-215.67541492,0.00011566,2]
[423763631,1780400213000,-215.67541492,0.00011575,2]
[423763632,1780400230000,-5351.36760141,0.00011725,2]
[423763633,1780400266000,-1200.0,0.00011825,2]
[423763634,1780400285000,-1200.0,0.00011825,2]
[423763637,1780400705000,-175.09468095,0.00011895,2]
[423763638,1780400759000,-250.0,0.00011918,2]
[423763639,1780400813000,-196.75034628,0.00011961,2]
[423763640,1780400866000,-196.22357088,0.00012073,2]
[423763641,1780400919000,-202.98840213,0.00012132,7]
[423763643,1780400973000,-189.69740348,0.00012132,7]
[423763646,1780401026000,-303.28220331,0.00012077,2]
[423763663,1780401032000,-500.0,0.00012177,2]
[423763666,1780401032000,-1000.0,0.00012179,2]
[423763667,1780401032000,-150.0,0.00012179,2]
[423763665,1780401032000,-500.0,0.00012177,2]
[423763671,1780401032000,-167.23,0.00012213,2]
[423763673,1780401032000,-1051.32,0.00012251,2]
[423763674,1780401032000,-200.0,0.00012268,2]
[423763681,1780401032000,-28509.5177866,0.00012612,2]
[423763676,1780401032000,-303.28220329,0.0001233,2]
[423763675,1780401032000,-4599.58,0.00012273,2]
[423763679,1780401032000,-619.12,0.00012567,2]
[423763678,1780401032000,-279.1497754,0.0001253,2]
[423763677,1780401032000,-471.26,0.00012383,2]
[423763662,1780401032000,-500.0,0.00012177,2]
[423763664,1780401032000,-500.0,0.00012177,2]
[423763661,1780401032000,-500.0,0.00012177,2]
[423763668,1780401032000,-4279.19,0.00012181,2]
[423763650,1780401032000,-1200.0,0.00012176,2]
[423763649,1780401032000,-150.0,0.00012166,2]
[423763654,1780401032000,-500.0,0.00012177,2]
[423763651,1780401032000,-500.0,0.00012177,2]
[423763652,1780401032000,-500.0,0.00012177,2]
[423763653,1780401032000,-500.0,0.00012177,2]
[423763680,1780401032000,-303.28220329,0.00012583,2]
[423763656,1780401032000,-500.0,0.00012177,2]
[423763655,1780401032000,-500.0,0.00012177,2]
[423763658,1780401032000,-596.81074018,0.00012177,2]
[423763660,1780401032000,-500.0,0.00012177,2]
[423763670,1780401032000,-841.17,0.00012187,2]
[423763669,1780401032000,-196.75034628,0.00012187,2]
[423763659,1780401032000,-500.0,0.00012177,2]
[423763657,1780401032000,-500.0,0.00012177,2]
[423763682,1780401032000,-1641.7674847,0.00012612,2]
[423763672,1780401032000,-549.61,0.00012244,2]
[423763684,1780401032000,-19.3748113,0.0001269,2]
[423763726,1780401032000,-156.53,0.00013451,2]
[423763728,1780401032000,-500.0,0.00013451,2]
[423763731,1780401032000,-156.53,0.00013565,2]
[423763738,1780401032000,-1000.0,0.0001361,2]
[423763743,1780401032000,-156.53,0.00013679,2]
[423763741,1780401032000,-1000.0,0.00013611,2]
[423763742,1780401032000,-500.0,0.00013611,2]
[423763683,1780401032000,-4918.6251287,0.00012612,2]
[423763736,1780401032000,-1000.0,0.0001361,2]
[423763733,1780401032000,-1000.0,0.0001361,2]
[423763740,1780401032000,-1000.0,0.00013611,2]
[423763739,1780401032000,-999.99,0.0001361,2]
[423763737,1780401032000,-1000.0,0.0001361,2]
[423763735,1780401032000,-1000.0,0.0001361,2]
[423763745,1780401032000,-500.0,0.00013698,2]
[423763711,1780401032000,-156.53,0.00013109,2]
[423763713,1780401032000,-193.0,0.0001311,2]
[423763744,1780401032000,-500.0,0.00013698,2]
[423763724,1780401032000,-1680.0,0.00013393,2]
[423763716,1780401032000,-177.46,0.00013132,2]
[423763688,1780401032000,-382.54759825,0.00012176,2]
[423763692,1780401032000,-441.70937173,0.00012869,2]
[423763690,1780401032000,-196.30060362,0.0001269,2]
[423763694,1780401032000,-391.34847306,0.00012869,2]
[423763698,1780401032000,-330.48215521,0.00012869,2]
[423763704,1780401032000,-36.59377138,0.00013096,2]
[423763686,1780401032000,-197.37803518,0.00012176,2]
[423763700,1780401032000,-150.0,0.00012985,2]
[423763707,1780401032000,-1264.74622862,0.00013096,2]
[423763718,1780401032000,-166.72,0.00013218,2]
[423763709,1780401032000,-670.06,0.00013098,2]
[423763720,1780401032000,-156.53,0.00013223,2]
[423763722,1780401032000,-156.53,0.00013337,2]
[423763702,1780401032000,-156.53,0.00012995,2]
[423763763,1780401033000,-500.0,0.00013698,2]
[423763755,1780401033000,-500.0,0.00013698,2]
[423763762,1780401033000,-500.0,0.00013698,2]
[423763761,1780401033000,-500.0,0.00013698,2]
[423763760,1780401033000,-500.0,0.00013698,2]
[423763758,1780401033000,-500.0,0.00013698,2]
[423763769,1780401033000,-1491.72260483,0.00013699,2]
[423763759,1780401033000,-500.0,0.00013698,2]
[423763749,1780401033000,-500.0,0.00013698,2]
[423763747,1780401033000,-500.0,0.00013698,2]
[423763752,1780401033000,-500.0,0.00013698,2]
[423763750,1780401033000,-500.0,0.00013698,2]
[423763754,1780401033000,-644.13499775,0.00013698,2]
[423763753,1780401033000,-500.0,0.00013698,2]
[423763748,1780401033000,-465.9276456,0.00013698,2]
[423763757,1780401033000,-500.0,0.00013698,2]
[423763756,1780401033000,-500.0,0.00013698,2]
[423763746,1780401033000,-500.0,0.00013698,2]
[423763764,1780401033000,-500.0,0.00013698,2]
[423763751,1780401033000,-500.0,0.00013698,2]
[423763768,1780401033000,-1491.72260483,0.00013699,2]
[423763766,1780401033000,-166.66,0.00013699,2]
[423763765,1780401033000,-488.36,0.00013698,2]
[423763767,1780401033000,-1491.72260483,0.00013699,2]
[423763790,1780401033000,-354.16068769,0.00013699,2]
[423763789,1780401033000,-623.75982494,0.00013699,2]
[423763785,1780401033000,-1491.72260483,0.00013699,2]
[423763787,1780401033000,-636.91560849,0.00013699,2]
[423763786,1780401033000,-1491.72260483,0.00013699,2]
[423763784,1780401033000,-1421.3266322,0.00013699,2]
[423763783,1780401033000,-1491.72260483,0.00013699,2]
[423763779,1780401033000,-1491.72260483,0.00013699,2]
[423763780,1780401033000,-1491.72260483,0.00013699,2]
[423763788,1780401033000,-538.18293477,0.00013699,2]
[423763778,1780401033000,-1491.72260483,0.00013699,2]
[423763771,1780401033000,-1491.72260483,0.00013699,2]
[423763777,1780401033000,-1491.72260483,0.00013699,2]
[423763770,1780401033000,-1491.72260483,0.00013699,2]
[423763782,1780401033000,-1491.72260483,0.00013699,2]
[423763781,1780401033000,-1491.72260483,0.00013699,2]
[423763774,1780401033000,-1491.72260483,0.00013699,2]
[423763773,1780401033000,-1491.72260483,0.00013699,2]
[423763775,1780401033000,-1491.72260483,0.00013699,2]
[423763776,1780401033000,-1491.72260483,0.00013699,2]
[423763772,1780401033000,-1491.72260483,0.00013699,2]
[423763816,1780401034000,-181.29,0.0001436,2]
[423763802,1780401034000,-166.66,0.00013973,2]
[423763805,1780401034000,-291.22,0.00014069,2]
[423763804,1780401034000,-162.32,0.00014043,2]
[423763815,1780401034000,-1257.027,0.0001436,2]
[423763806,1780401034000,-255.0,0.00014088,2]
[423763801,1780401034000,-156.53,0.00013907,2]
[423763800,1780401034000,-216.10047929,0.00013886,2]
[423763794,1780401034000,-841.17,0.0001371,2]
[423763797,1780401034000,-166.66,0.00013836,2]
[423763798,1780401034000,-1000.0,0.00013872,2]
[423763796,1780401034000,-156.53,0.00013793,2]
[423763795,1780401034000,-2319.0,0.0001372,2]
[423763793,1780401034000,-457.82509389,0.00013699,2]
[423763792,1780401034000,-294.52798115,0.00013699,2]
[423763791,1780401034000,-1221.57546625,0.00013699,2]
[423763807,1780401034000,-166.66,0.0001411,2]
[423763799,1780401034000,-500.0,0.00013872,2]
[423763813,1780401034000,-500.0,0.00014249,2]
[423763803,1780401034000,-156.53,0.00014021,2]
[423763810,1780401034000,-500.0,0.00014233,2]
[423763808,1780401034000,-156.53,0.00014135,2]
[423763829,1780401034000,-1024.49128188,0.00014672,2]
[423763828,1780401034000,-201.50871812,0.00014672,2]
[423763822,1780401034000,-1357.0,0.00014672,2]
[423763825,1780401034000,-54.32362875,0.00014672,2]
[423763823,1780401034000,-3551.0,0.00014672,2]
[423763824,1780401034000,-525.0,0.00014672,2]
[423763821,1780401034000,-929.0,0.00014672,2]
[423763826,1780401034000,-988.46017311,0.00014672,2]
[423763830,1780401034000,-3171.68909813,0.00014672,2]
[423763820,1780401034000,-500.0,0.00014575,2]
[423763827,1780401034000,-230.21619814,0.00014672,2]
[423763818,1780401034000,-166.66,0.00014384,2]
[423763817,1780401034000,-156.53,0.00014363,2]
[423763812,1780401034000,-156.53,0.00014249,2]
[423763809,1780401034000,-500.0,0.00014233,2]
[423763814,1780401034000,-500.0,0.00014249,2]
[423763819,1780401034000,-8799.58,0.00014497,2]
[423763811,1780401034000,-166.66,0.00014247,2]
[423763852,1780401038000,-4430.18010999,0.00014816,2]
[423763849,1780401038000,-361.75050411,0.00014809,2]
[423763864,1780401038000,-798.94823181,0.000149,2]
[423763855,1780401038000,-798.94823181,0.00014851,2]
[423763869,1780401038000,-2779.0,0.000149,2]
[423763856,1780401038000,-798.94823181,0.00014863,2]
[423763858,1780401038000,-350.0,0.0001488,2]
[423763865,1780401038000,-753.51220865,0.000149,2]
[423763860,1780401038000,-200.0,0.0001488,2]
[423763866,1780401038000,-1000.0,0.000149,2]
[423763863,1780401038000,-5902.73738216,0.000149,3]
[423763862,1780401038000,-5000.0,0.00014888,2]
[423763861,1780401038000,-798.94823181,0.00014888,2]
[423763868,1780401038000,-315.0,0.000149,2]
[423763851,1780401038000,-5569.81989001,0.00014816,2]
[423763859,1780401038000,-163.0,0.0001488,2]
[423763853,1780401038000,-798.94823181,0.00014826,2]
[423763841,1780401038000,-150.0,0.000147,2]
[423763848,1780401038000,-798.94823181,0.00014801,2]
[423763832,1780401038000,-552.93113016,0.00013645,2]
[423763833,1780401038000,-1151.70543082,0.00013645,2]
[423763834,1780401038000,-452.68343902,0.00013645,2]
[423763840,1780401038000,-5386.95653349,0.000147,2]
[423763835,1780401038000,-2157.32,0.00013986,2]
[423763836,1780401038000,-2157.32,0.00014328,2]
[423763837,1780401038000,-2157.32,0.00014669,2]
[423763850,1780401038000,-798.94823181,0.00014814,2]
[423763838,1780401038000,-468.31090187,0.00014672,2]
[423763839,1780401038000,-6069.0,0.00014672,2]
[423763854,1780401038000,-798.94823181,0.00014838,2]
[423763844,1780401038000,-2351.0,0.00014733,2]
[423763843,1780401038000,-210.787141,0.000147,2]
[423763845,1780401038000,-1301.34,0.00014733,2]
[423763846,1780401038000,-350.0,0.00014758,2]
[423763847,1780401038000,-798.94823181,0.00014789,2]
[423763842,1780401038000,-163.519722,0.000147,2]
[423763870,1780401038000,-2222.0,0.00014938,2]
[423763857,1780401038000,-798.94823181,0.00014875,2]
[423763871,1780401038000,-3954.13781757,0.00014967,2]
[423763891,1780401038000,-1117.51735227,0.00015,2]
[423763897,1780401038000,-250.0,0.00015,2]
[423763893,1780401038000,-1500.0,0.00015,2]
[423763894,1780401038000,-738.71584692,0.00015,2]
[423763896,1780401038000,-1500.0,0.00015,2]
[423763895,1780401038000,-761.28415308,0.00015,2]
[423763898,1780401038000,-250.0,0.00015,2]
[423763892,1780401038000,-382.48264773,0.00015,2]
[423763900,1780401038000,-586.68335749,0.00015,2]
[423763901,1780401038000,-2762.94568636,0.00015,2]
[423763903,1780401038000,-12926.52310043,0.00015,2]
[423763905,1780401038000,-490.0,0.00015,2]
[423763907,1780401038000,-3088.17405779,0.00015,2]
[423763904,1780401038000,-3015.00009,0.00015,2]
[423763906,1780401038000,-446.26987052,0.00015,2]
[423763908,1780401038000,-1428.10080692,0.00015,2]
[423763902,1780401038000,-503.47737862,0.00015,2]
[423763888,1780401038000,-312.0,0.00015,5]
[423763899,1780401038000,-250.0,0.00015,2]
[423763879,1780401038000,-500.0,0.00014999,2]
[423763884,1780401038000,-500.0,0.00014999,2]
[423763872,1780401038000,-1155.05164175,0.00014967,2]
[423763876,1780401038000,-346.154224,0.00014989,2]
[423763877,1780401038000,-151.0,0.00014997,2]
[423763875,1780401038000,-333.68262515,0.00014985,2]
[423763873,1780401038000,-1843.50398818,0.00014967,2]
[423763874,1780401038000,-1217.67297725,0.00014985,2]
[423763880,1780401038000,-500.0,0.00014999,2]
[423763881,1780401038000,-500.0,0.00014999,2]
[423763867,1780401038000,-3847.30603269,0.000149,2]
[423763887,1780401038000,-337.17947397,0.00014999,2]
[423763882,1780401038000,-500.0,0.00014999,2]
[423763883,1780401038000,-500.0,0.00014999,2]
[423763878,1780401038000,-500.0,0.00014999,2]
[423763885,1780401038000,-500.0,0.00014999,2]
[423763889,1780401038000,-241.0,0.00015,5]
[423763890,1780401038000,-150.0,0.00015,2]
[423763886,1780401038000,-532.81,0.00014999,2]
[423763915,1780401039000,-571.18927001,0.00015,2]
[423763979,1780401040000,-295.96214428,0.00015,2]
[423763978,1780401040000,-88.01761133,0.00015,2]
[423763980,1780401040000,-310.0,0.00015,2]
[423763998,1780401043000,-290.46886758,0.00015,2]
[423763989,1780401043000,-456.92043422,0.00015,2]
[423763990,1780401043000,-1234.60881656,0.00015,2]
[423763992,1780401043000,-259.42905606,0.00015,2]
[423763991,1780401043000,-409.53,0.00015,2]
[423763994,1780401043000,-9173.40769887,0.00015,2]
[423763996,1780401043000,-5141.46992047,0.00015,2]
[423763997,1780401043000,-833.26908932,0.00015,2]
[423763993,1780401043000,-19238.81506056,0.00015,2]
[423763995,1780401043000,-10847.72803583,0.00015,2]
[423764157,1780401046000,-757.05788483,0.00015,2]
[423764162,1780401046000,-492.98298303,0.00015,2]
[423764161,1780401046000,-8809.80673891,0.00015,2]
[423764160,1780401046000,-511.63701206,0.00015,2]
[423764159,1780401046000,-366.69020406,0.00015,2]
[423764158,1780401046000,-348.00732758,0.00015,2]
[423764156,1780401046000,-418.0,0.00014672,2]
[423764170,1780401090000,2509.0,0.000101,3]
[423764169,1780401090000,5531.0,0.000103,5]
[423764178,1780401457000,-227.55474399,0.00010804,2]
[423764180,1780401510000,-193.0,0.00011885,2]
[423764181,1780401563000,-196.22357088,0.00011885,2]
[423764182,1780401617000,-5351.36760141,0.00011951,2]
[423764183,1780401670000,-250.0,0.00012051,2]
[423764184,1780401724000,-344.09008224,0.00012217,2]
[423764185,1780401777000,-151.64110166,0.00012219,2]
[423764187,1780401830000,-202.98840213,0.00012319,7]
[423764188,1780401884000,-189.69740348,0.00012319,7]
[423764192,1780401937000,-500.0,0.00012508,2]
[423764197,1780402232000,-250.0,0.00012204,2]
[423764199,1780402232000,-820.81,0.00012204,2]
[423764198,1780402232000,-510.0,0.00012204,2]
[423764201,1780402232000,-259.46973245,0.000125,2]
[423764200,1780402232000,-175.09468095,0.0001241,2]
[423764202,1780402232000,-151.0,0.00012509,2]
[423764205,1780402232000,-1200.0,0.00012509,2]
[423764206,1780402232000,-300.0,0.00012509,2]
[423764203,1780402232000,-1200.0,0.00012509,2]
[423764209,1780402232000,-45087.83914406,0.00012512,2]
[423764207,1780402232000,-150.0,0.00012511,2]
[423764208,1780402232000,-266.47313978,0.00012512,2]
[423764211,1780402232000,-474.20905484,0.00012512,2]
[423764210,1780402232000,-369.98931999,0.00012512,2]
[423764212,1780402232000,-448.42004428,0.00012512,2]
[423764213,1780402232000,-396.24,0.00012512,2]
[423764214,1780402232000,-461.3046,0.00012512,2]
[423764204,1780402232000,-300.0,0.00012509,2]
[423764233,1780402238000,-250.0,0.00013651,2]
[423764232,1780402238000,-255.0,0.00013599,2]
[423764234,1780402238000,-500.0,0.00013698,2]
[423764236,1780402238000,-11137.7,0.00013699,2]
[423764239,1780402238000,-1580.81,0.0001373,2]
[423764240,1780402238000,-600.0,0.00013758,2]
[423764242,1780402238000,-600.0,0.00013758,2]
[423764241,1780402238000,-600.0,0.00013758,2]
[423764237,1780402238000,-164.0,0.0001372,2]
[423764244,1780402238000,-600.0,0.00013758,2]
[423764243,1780402238000,-600.0,0.00013758,2]
[423764235,1780402238000,-166.66,0.00013699,2]
[423764238,1780402238000,-420.0,0.00013725,2]
[423764231,1780402238000,-401.84403814,0.00013599,2]
[423764217,1780402238000,-701.21521527,0.00012512,2]
[423764228,1780402238000,-1100.0,0.000134,2]
[423764227,1780402238000,-2437.36,0.00013255,2]
[423764229,1780402238000,-150.0,0.00013488,2]
[423764226,1780402238000,-588.63,0.00013187,2]
[423764224,1780402238000,-296.6,0.00013163,2]
[423764225,1780402238000,-726.12,0.00013164,2]
[423764223,1780402238000,-1000.0,0.00012954,2]
[423764222,1780402238000,-150.0,0.00012744,2]
[423764219,1780402238000,-150.56,0.00012547,2]
[423764218,1780402238000,-92274.77978178,0.00012512,2]
[423764220,1780402238000,-196.75034628,0.0001255,2]
[423764221,1780402238000,-682.9,0.00012571,2]
[423764245,1780402238000,-150.0,0.00013758,2]
[423764230,1780402238000,-153.37729547,0.000135,4]
[423764246,1780402238000,-206.57428499,0.00013758,2]
[423764269,1780402238000,-274.63912355,0.00014312,2]
[423764249,1780402238000,-401.84403812,0.00013785,2]
[423764279,1780402238000,-1745.716834,0.00014367,2]
[423764277,1780402238000,-1451.90137418,0.00014367,2]
[423764274,1780402238000,-1591.0,0.0001436,2]
[423764276,1780402238000,-1745.716834,0.00014367,2]
[423764275,1780402238000,-1745.716834,0.00014367,2]
[423764273,1780402238000,-401.84403812,0.00014342,2]
[423764272,1780402238000,-229.58929584,0.00014337,2]
[423764278,1780402238000,-293.81545982,0.00014367,2]
[423764271,1780402238000,-1060.0,0.00014335,2]
[423764267,1780402238000,-540.0,0.00014304,2]
[423764270,1780402238000,-2000.0,0.00014335,2]
[423764268,1780402238000,-505.28252067,0.00014308,2]
[423764265,1780402238000,-166.66,0.00014247,2]
[423764264,1780402238000,-500.0,0.00014178,2]
[423764266,1780402238000,-229.58929592,0.00014267,2]
[423764259,1780402238000,-500.0,0.00014178,2]
[423764248,1780402238000,-500.0,0.0001376,2]
[423764250,1780402238000,-164.44,0.00013796,2]
[423764253,1780402238000,-166.66,0.00013973,2]
[423764257,1780402238000,-166.66,0.0001411,2]